bitfinex-derivatives/quotes_BTCF0:USTF0_20250812
["timestamp","ask_amount","ask_price","bid_price","bid_amount"]
[1755019467921,1.05094416,119860.0,119850.0,0.0844236]
[1755019468314,1.05094416,119860.0,119850.0,0.59018249]
[1755019468515,1.05094416,119860.0,119850.0,0.71023249]
[1755019468911,1.05094416,119860.0,119850.0,0.2044736]
[1755019469309,1.05094416,119860.0,119850.0,0.71023249]
[1755019469718,1.05094416,119860.0,119850.0,0.2044736]
[1755019469920,1.05094416,119860.0,119850.0,0.71023249]
[1755019471018,1.05094416,119860.0,119850.0,0.59018249]
[1755019471318,1.05094416,119860.0,119850.0,0.62262249]
[1755019471513,1.05094416,119860.0,119850.0,0.71057249]
[1755019471719,1.05094416,119860.0,119850.0,0.2048136]
[1755019471923,1.05094416,119860.0,119850.0,0.71057249]
[1755019472421,0.96819746,119860.0,119850.0,0.71057249]
[1755019472624,1.05161416,119860.0,119850.0,0.2048136]
[1755019473009,1.05161416,119860.0,119850.0,0.71057249]
[1755019474121,0.96819746,119860.0,119850.0,0.71057249]
[1755019474425,0.96819746,119860.0,119850.0,0.2048136]
[1755019474724,1.05161416,119860.0,119850.0,0.71057249]
[1755019477018,1.05161416,119860.0,119850.0,0.2048136]
[1755019477218,1.05161416,119860.0,119850.0,0.71057249]
[1755019479227,1.05161416,119860.0,119850.0,0.2048136]
[1755019479421,1.05161416,119860.0,119850.0,0.71057249]
[1755019479835,1.05161416,119860.0,119850.0,0.2048136]
[1755019480126,1.05161416,119860.0,119850.0,0.71057249]
[1755019480427,1.05161416,119860.0,119850.0,0.2048136]
[1755019480927,1.05161416,119860.0,119850.0,0.71057249]
[1755019483034,1.05161416,119860.0,119850.0,0.2048136]
[1755019483332,1.05161416,119860.0,119850.0,0.71057249]
[1755019483831,1.05161416,119860.0,119850.0,0.2048136]
[1755019484033,1.05161416,119860.0,119850.0,0.71057249]
[1755019484423,1.05161416,119860.0,119850.0,0.2048136]
[1755019484624,1.05161416,119860.0,119850.0,0.71057249]
[1755019485125,0.11526746,119860.0,119850.0,0.2048136]
[1755019485435,0.96637746,119860.0,119850.0,0.2048136]
[1755019485635,0.96637746,119860.0,119850.0,0.71057249]
[1755019486537,0.96637746,119860.0,119850.0,0.2048136]
[1755019486731,0.96637746,119860.0,119850.0,0.71057249]
[1755019487531,0.96637746,119860.0,119850.0,0.2048136]
[1755019487730,0.96637746,119860.0,119850.0,0.71057249]
[1755019488638,0.96637746,119860.0,119850.0,0.2048136]
[1755019488835,0.96637746,119860.0,119850.0,0.71057249]
[1755019490442,0.96637746,119860.0,119850.0,0.2048136]
[1755019490642,0.96637746,119860.0,119850.0,0.71057249]
[1755019493138,0.43627246,119880.0,119870.0,0.1896497]
[1755019493339,1.28120959,119880.0,119870.0,0.70955859]
[1755019493836,1.28120959,119880.0,119870.0,0.66118859]
[1755019494037,1.28120959,119880.0,119870.0,0.1554297]
[1755019494246,1.28120959,119880.0,119870.0,0.66118859]
[1755019494444,1.28220959,119880.0,119870.0,0.66118859]
[1755019495444,1.28220959,119880.0,119870.0,0.1554297]
[1755019495744,1.28420959,119880.0,119870.0,0.66118859]
[1755019496653,1.20080089,119880.0,119870.0,0.70955859]
[1755019498643,1.20080089,119880.0,119870.0,0.2037997]
[1755019498945,1.20080089,119880.0,119870.0,0.70955859]
[1755019499147,1.11679199,119880.0,119870.0,0.72643749]
[1755019499850,1.03338929,119880.0,119870.0,0.72643749]
[1755019500443,1.11679199,119880.0,119870.0,0.72643749]
[1755019500645,1.11679199,119880.0,119870.0,0.2206786]
[1755019500840,1.11679199,119880.0,119870.0,0.72643749]
[1755019501242,1.11679199,119880.0,119870.0,0.2206786]
[1755019501548,1.11679199,119880.0,119870.0,0.72643749]
[1755019502042,1.11679199,119880.0,119870.0,0.2206786]
[1755019502236,1.11679199,119880.0,119870.0,0.72643749]
[1755019506154,1.11679199,119880.0,119870.0,0.2037997]
[1755019506341,1.11679199,119880.0,119870.0,0.70955859]
[1755019507849,0.06829216,119880.0,119870.0,0.2036397]
[1755019508054,0.06829216,119880.0,119870.0,1.21515748]
[1755019508547,0.0031,119880.0,119870.0,1.21515748]
[1755019509446,0.0031,119880.0,119870.0,2.05215748]
[1755019510252,0.01892668,119900.0,119890.0,0.0833958]
[1755019510453,0.03444668,119900.0,119890.0,0.70867469]
[1755019511158,0.03444668,119900.0,119890.0,0.2029158]
[1755019511358,0.03444668,119900.0,119890.0,0.70867469]
[1755019511659,0.06903668,119900.0,119890.0,0.70867469]
[1755019512658,0.06903668,119900.0,119890.0,0.2029158]
[1755019512856,0.06903668,119900.0,119890.0,0.70867469]
[1755019513057,0.13996668,119900.0,119890.0,0.2029158]
[1755019513252,0.13996668,119900.0,119890.0,0.70867469]
[1755019513551,0.01992668,119900.0,119890.0,0.72523894]
[1755019513752,0.03544668,119900.0,119890.0,0.72523894]
[1755019513959,0.10302281,119900.0,119890.0,0.21948005]
[1755019514152,0.03544668,119900.0,119890.0,0.21948005]
[1755019514357,0.07003668,119900.0,119890.0,0.72523894]
[1755019514655,0.13996668,119900.0,119890.0,0.72523894]
[1755019516351,0.22335568,119900.0,119890.0,0.72523894]
[1755019516951,0.13996668,119900.0,119890.0,0.72523894]
[1755019517959,0.22335568,119900.0,119890.0,0.72523894]
[1755019520271,0.13996668,119900.0,119890.0,0.72523894]
[1755019523862,0.01992668,119900.0,119890.0,0.72523894]
[1755019524051,0.10331568,119900.0,119890.0,0.72523894]
[1755019524258,0.22335568,119900.0,119890.0,0.72523894]
[1755019524760,0.12627668,119900.0,119890.0,0.72523894]
[1755019524960,0.09172668,119900.0,119890.0,0.72523894]
[1755019525160,0.03544668,119900.0,119890.0,0.72523894]
[1755019525556,0.01992668,119900.0,119890.0,0.72523894]
[1755019527157,0.001,119900.0,119890.0,0.72523894]
[1755019528065,0.001,119900.0,119890.0,0.21948005]
[1755019528066,0.084389,119900.0,119890.0,0.21948005]
[1755019528369,0.001,119900.0,119890.0,0.72523894]
[1755019532761,0.001,119900.0,119890.0,0.21948005]
[1755019532965,0.001,119900.0,119890.0,0.72523894]
[1755019533166,0.001,119900.0,119890.0,0.72623894]
[1755019533765,1.02254271,119910.0,119900.0,0.202349]
[1755019533959,1.02254271,119910.0,119900.0,0.70810789]
[1755019534269,0.95495001,119910.0,119900.0,0.70810789]
[1755019534453,0.11707001,119910.0,119900.0,0.70810789]
[1755019534969,0.90577,119920.0,119900.0,0.87488139]
[1755019535166,0.95273,119920.0,119910.0,0.70810089]
[1755019535467,0.95273,119920.0,119910.0,0.71660654]
[1755019536460,1.0371051,119920.0,119910.0,0.71660654]
[1755019536856,1.10362282,119920.0,119910.0,0.71660654]
[1755019537463,1.02024772,119920.0,119910.0,0.71660654]
[1755019539363,1.10362282,119920.0,119910.0,0.71660654]
[1755019539766,1.02024772,119920.0,119910.0,0.71660654]
[1755019541565,1.02024772,119920.0,119910.0,0.70810089]
[1755019541566,0.06751772,119920.0,119910.0,0.70810089]
[1755019543769,0.001,119920.0,119910.0,1.55473078]
[1755019544262,0.001,119920.0,119910.0,2.06048967]
[1755019544670,0.001,119920.0,119910.0,2.06890076]
[1755019545064,0.001,119920.0,119910.0,1.56314187]
[1755019545572,0.12173119,119930.0,119920.0,0.10405]
[1755019545870,0.13621119,119930.0,119920.0,0.70809399]
[1755019546277,0.2023432,119930.0,119920.0,0.70809399]
[1755019546563,0.0846132,119930.0,119920.0,0.70809399]
[1755019547170,0.0846132,119930.0,119920.0,0.71109399]
[1755019547870,0.1322232,119930.0,119920.0,0.71109399]
[1755019548175,0.06613201,119930.0,119920.0,0.71109399]
[1755019548470,1.0304514,119940.0,119930.0,0.095]
[1755019548769,1.0304514,119940.0,119930.0,0.72477981]
[1755019548770,1.05384577,119940.0,119930.0,0.72477981]
[1755019549667,1.05384577,119940.0,119930.0,0.22002092]
[1755019549869,1.05384577,119940.0,119930.0,0.20511092]
[1755019550067,1.05384577,119940.0,119930.0,0.22002092]
[1755019550264,1.05384577,119940.0,119930.0,0.72577981]
[1755019551873,1.1214127,119940.0,119930.0,0.72577981]
[1755019553073,1.09801833,119940.0,119930.0,0.72577981]
[1755019553273,1.12141482,119940.0,119930.0,0.72577981]
[1755019553479,1.09801833,119940.0,119930.0,0.72577981]
[1755019555873,1.12141673,119940.0,119930.0,0.72577981]
[1755019556368,1.12141678,119940.0,119930.0,0.72577981]
[1755019557178,1.09801833,119940.0,119930.0,0.72577981]
[1755019557878,1.09801833,119940.0,119930.0,0.22002092]
[1755019558176,1.09801833,119940.0,119930.0,0.72577981]
[1755019560182,1.09801833,119940.0,119930.0,0.22002092]
[1755019560477,1.60377722,119940.0,119930.0,0.10106092]
[1755019560779,1.79394472,119940.0,119930.0,0.001]
[1755019560987,0.2012751,119920.0,119910.0,0.26693209]
[1755019561172,1.0269151,119920.0,119910.0,0.26693209]
[1755019561671,0.2012821,119910.0,119900.0,0.2501658]
[1755019561878,0.129849,119900.0,119890.0,0.27602855]
[1755019562174,1.03537681,119900.0,119890.0,0.29887855]
[1755019562376,1.03537681,119900.0,119890.0,0.27602855]
[1755019562582,1.03537681,119900.0,119890.0,0.0833937]
[1755019562782,0.201296,119890.0,119880.0,0.3336108]
[1755019562975,0.201296,119890.0,119880.0,0.90500969]
[1755019563183,0.1179,119890.0,119880.0,0.95599969]
[1755019563478,0.07926,119890.0,119880.0,0.95599969]
[1755019563683,0.94354,119900.0,119890.0,0.200026]
[1755019563880,0.94354,119900.0,119890.0,0.70578489]
[1755019564181,1.026929,119900.0,119890.0,0.70578489]
[1755019564382,1.026929,119900.0,119890.0,0.70778489]
[1755019565085,0.94354,119900.0,119890.0,0.70778489]
[1755019565271,1.026929,119900.0,119890.0,0.70778489]
[1755019566786,1.026929,119900.0,119890.0,0.70978489]
[1755019568181,1.026929,119900.0,119890.0,0.70778489]
[1755019568383,1.026929,119900.0,119890.0,0.202026]
[1755019568686,1.026929,119900.0,119890.0,0.70778489]
[1755019569087,1.026929,119900.0,119890.0,0.70578489]
[1755019571784,1.026929,119900.0,119890.0,0.61261489]
[1755019571991,1.026929,119900.0,119890.0,0.70578489]
[1755019572892,1.026929,119900.0,119890.0,0.200026]
[1755019573090,1.026929,119900.0,119890.0,0.70578489]
[1755019576995,1.026929,119900.0,119890.0,0.200026]
[1755019577295,1.026929,119900.0,119890.0,0.70578489]
[1755019577787,0.988289,119900.0,119890.0,0.70578489]
[1755019577989,1.026929,119900.0,119890.0,0.70578489]
[1755019579299,1.026929,119900.0,119890.0,0.200026]
[1755019579596,1.026929,119900.0,119890.0,0.70578489]
[1755019580597,0.201289,119900.0,119890.0,0.70578489]
[1755019580800,1.026649,119900.0,119890.0,0.70578489]
[1755019581399,1.026649,119900.0,119890.0,0.200026]
[1755019581699,1.026649,119900.0,119890.0,0.70578489]
[1755019583000,0.94326,119900.0,119890.0,0.70578489]
[1755019583298,0.94314,119900.0,119890.0,0.70578489]
[1755019583697,1.54424759,119900.0,119880.0,0.2502067]
[1755019583894,0.2012959,119890.0,119880.0,0.283434]
[1755019584292,0.2012959,119890.0,119880.0,0.58916019]
[1755019584492,0.2012959,119890.0,119880.0,0.0834013]
[1755019585193,0.2012959,119890.0,119880.0,0.62129019]
[1755019585401,0.2012959,119890.0,119880.0,0.68453019]
[1755019585598,0.2012959,119890.0,119880.0,0.2000313]
[1755019586102,0.2012959,119890.0,119880.0,0.70579019]
[1755019588799,0.2012959,119890.0,119880.0,0.2000313]
[1755019589103,0.2012959,119890.0,119880.0,0.70579019]
[1755019591497,0.2012959,119890.0,119880.0,0.2000313]
[1755019591802,0.2012959,119890.0,119880.0,0.70579019]
[1755019593301,0.2012959,119890.0,119880.0,0.2000313]
[1755019593496,0.2012959,119890.0,119880.0,0.70579019]
[1755019594703,0.87385959,119890.0,119870.0,0.4040825]
[1755019595003,1.0271529,119880.0,119870.0,0.95798139]
[1755019595697,0.94375,119880.0,119870.0,0.95798139]
[1755019596504,1.027153,119880.0,119870.0,0.95798139]
[1755019597197,1.027153,119880.0,119870.0,0.4522225]
[1755019597392,1.027153,119880.0,119870.0,0.95798139]
[1755019599204,1.09389973,119880.0,119870.0,0.95798139]
[1755019601408,1.01049673,119880.0,119870.0,0.95798139]
[1755019602507,0.89154673,119880.0,119870.0,0.95798139]
[1755019602708,0.92442673,119880.0,119870.0,0.95798139]
[1755019602907,1.04532973,119880.0,119870.0,0.95798139]
[1755019603109,1.09389973,119880.0,119870.0,0.95798139]
[1755019603308,1.01049673,119880.0,119870.0,0.95798139]
[1755019606613,1.09389973,119880.0,119870.0,0.95798139]
[1755019607208,0.18569673,119880.0,119870.0,0.95798139]
[1755019607410,1.01005673,119880.0,119870.0,0.95798139]
[1755019608213,1.09345973,119880.0,119870.0,0.4522225]
[1755019608410,1.09345973,119880.0,119870.0,0.95798139]
[1755019608811,1.01005673,119880.0,119870.0,0.95798139]
[1755019609219,1.09345973,119880.0,119870.0,0.4522225]
[1755019609419,1.09345973,119880.0,119870.0,0.95798139]
[1755019610304,1.10177115,119880.0,119870.0,0.95798139]
[1755019610508,1.10177115,119880.0,119870.0,0.3336325]
[1755019610808,1.10177115,119880.0,119870.0,0.92115139]
[1755019611116,1.10177115,119880.0,119870.0,0.95798139]
[1755019612115,1.09345973,119880.0,119870.0,0.95798139]
[1755019612617,1.11204899,119880.0,119870.0,0.95798139]
[1755019612816,1.12043066,119880.0,119870.0,0.95798139]
[1755019615721,1.12043066,119880.0,119870.0,0.4522225]
[1755019615916,1.12043066,119880.0,119870.0,0.95798139]
[1755019617521,1.12043066,119880.0,119870.0,0.4522225]
[1755019617721,1.12043066,119880.0,119870.0,0.95798139]
[1755019619617,1.12043066,119880.0,119870.0,0.67257339]
[1755019619825,0.2019799,119870.0,119860.0,0.92559169]
[1755019620025,0.2019799,119870.0,119860.0,0.95732169]
[1755019620521,0.2019799,119870.0,119860.0,0.4515628]
[1755019620817,0.2019799,119870.0,119860.0,0.95732169]
[1755019621817,0.2019799,119870.0,119860.0,0.3681465]
[1755019622120,0.70773879,119870.0,119860.0,0.001]
[1755019622419,0.70773879,119870.0,119860.0,0.002]
[1755019622623,2.20773879,119870.0,119860.0,0.002]
[1755019622819,1.7019799,119870.0,119860.0,0.002]
[1755019623822,2.20773879,119870.0,119860.0,0.002]
[1755019624014,1.7019799,119870.0,119860.0,0.002]
[1755019624220,2.20773879,119870.0,119860.0,0.002]
[1755019624926,2.37459479,119870.0,119860.0,0.002]
[1755019625425,1.8688359,119870.0,119860.0,0.002]
[1755019625626,2.20773879,119870.0,119860.0,0.002]
[1755019626021,1.7019799,119870.0,119860.0,0.002]
[1755019626226,2.20773879,119870.0,119860.0,0.002]
[1755019626629,1.7019799,119870.0,119860.0,0.002]
[1755019626929,2.20773879,119870.0,119860.0,0.002]
[1755019628227,2.20773879,119870.0,119860.0,0.001]
[1755019629724,0.1313469,119860.0,119850.0,0.1082233]
[1755019629919,1.0255869,119860.0,119850.0,0.1082233]
[1755019630124,1.0255869,119860.0,119850.0,0.1871233]
[1755019630324,1.0255869,119860.0,119850.0,0.2013233]
[1755019633033,0.1313539,119850.0,119840.0,0.80321709]
[1755019633336,0.2019939,119850.0,119840.0,0.3681882]
[1755019633529,0.70775279,119850.0,119840.0,0.1553988]
[1755019633728,0.70775279,119850.0,119840.0,0.0834288]
[1755019633929,0.2019939,119850.0,119840.0,0.0834288]
[1755019634132,0.0834308,119840.0,119830.0,0.97436513]
[1755019634329,0.9547608,119840.0,119830.0,0.89092783]
[1755019634530,1.0254008,119840.0,119830.0,0.89092783]
[1755019635133,0.9876008,119840.0,119830.0,0.73676053]
[1755019635339,1.0254008,119840.0,119830.0,0.30173164]
[1755019635937,1.0254008,119840.0,119830.0,0.80749053]
[1755019636140,1.0254008,119840.0,119830.0,0.1306033]
[1755019636436,1.1922753,119840.0,119830.0,0.1524678]
[1755019636634,1.1922753,119840.0,119830.0,0.1827378]
[1755019636938,1.1922753,119840.0,119830.0,0.2043378]
[1755019637138,1.69803419,119840.0,119830.0,0.003]
[1755019637643,1.1922753,119840.0,119830.0,0.005]
[1755019638032,1.69803419,119840.0,119830.0,0.005]
[1755019639036,1.26029907,119840.0,119830.0,0.005]
[1755019639243,1.26029907,119840.0,119830.0,0.003]
[1755019639244,1.76605796,119840.0,119830.0,0.003]
[1755019639541,0.1313678,119830.0,119820.0,0.87399209]
[1755019639742,0.2020078,119830.0,119820.0,0.79054769]
[1755019639946,0.2020078,119830.0,119820.0,0.2847888]
[1755019640137,0.2020078,119830.0,119820.0,0.79054769]
[1755019640739,0.2020078,119830.0,119820.0,0.62565889]
[1755019640940,0.2020078,119830.0,119820.0,0.70910369]
[1755019641546,0.2020078,119830.0,119820.0,0.2033448]
[1755019642142,0.21895402,119830.0,119820.0,0.1199]
[1755019642344,0.72471291,119830.0,119820.0,0.1199]
[1755019643039,0.73317765,119830.0,119820.0,0.1199]
[1755019643551,0.22741876,119830.0,119820.0,0.2033448]
[1755019644765,0.22741876,119830.0,119790.0,0.38700002]
[1755019644766,0.2020287,119800.0,119790.0,0.38700002]
[1755019644944,1.0251887,119800.0,119790.0,0.30353452]
[1755019645150,1.0251887,119800.0,119790.0,0.22006912]
[1755019646257,1.0251887,119800.0,119790.0,0.71012449]
[1755019646455,1.0251887,119800.0,119790.0,0.2043656]
[1755019646647,1.0251887,119800.0,119790.0,0.1209]
[1755019646955,1.09193994,119800.0,119790.0,0.2063656]
[1755019647954,1.09193994,119800.0,119790.0,0.03057]
[1755019648258,0.2020356,119790.0,119780.0,0.0001]
[1755019648448,0.70779449,119790.0,119780.0,0.0001]
[1755019648753,0.70779449,119790.0,119780.0,0.0249]
[1755019649053,0.2020356,119790.0,119780.0,0.118]
[1755019649261,0.2020356,119790.0,119780.0,0.2014726]
[1755019649452,0.2020356,119790.0,119780.0,0.118]
[1755019649852,0.2020356,119790.0,119780.0,0.2014725]
[1755019651361,0.2020356,119790.0,119780.0,0.118]
[1755019651755,0.2020356,119790.0,119780.0,0.2014725]
[1755019652254,0.2020356,119790.0,119780.0,0.70723139]
[1755019653058,0.2020356,119790.0,119780.0,0.2014725]
[1755019654051,0.21903917,119790.0,119780.0,0.07207]
[1755019654362,0.74898208,119790.0,119780.0,0.0001]
[1755019654560,0.72479806,119790.0,119780.0,0.0001]
[1755019655160,0.74890177,119790.0,119780.0,0.0001]
[1755019655557,0.24314288,119790.0,119780.0,0.0001]
[1755019655760,0.74890177,119790.0,119780.0,0.0001]
[1755019656349,0.24314288,119790.0,119780.0,0.0001]
[1755019656660,0.74890177,119790.0,119780.0,0.12117]
[1755019657258,0.74890177,119790.0,119780.0,0.0001]
[1755019658263,0.24314288,119790.0,119780.0,0.0001]
[1755019658466,0.74890177,119790.0,119780.0,0.0001]
[1755019660366,0.85890177,119790.0,119760.0,0.01907]
[1755019660555,0.21929897,119770.0,119760.0,0.12569]
[1755019660756,0.72505786,119770.0,119760.0,0.07784]
[1755019660956,0.21929897,119770.0,119760.0,0.11124]
[1755019661158,0.72505786,119770.0,119760.0,0.1947265]
[1755019661358,0.7333233,119770.0,119760.0,0.12569]
[1755019661558,0.25166798,119770.0,119760.0,0.2091765]
[1755019661865,0.25166798,119770.0,119760.0,0.12769]
[1755019662266,0.25166798,119770.0,119760.0,0.2111765]
[1755019663073,0.25166798,119770.0,119760.0,0.2131765]
[1755019663567,0.25166798,119770.0,119760.0,0.12969]
[1755019663767,0.25166798,119770.0,119760.0,0.2131764]
[1755019664358,0.25166798,119770.0,119760.0,0.12969]
[1755019664867,0.25166798,119770.0,119760.0,0.2131765]
[1755019665466,0.25166798,119770.0,119760.0,0.12969]
[1755019665661,0.25166798,119770.0,119760.0,0.2131764]
[1755019666467,0.25166798,119770.0,119760.0,0.12969]
[1755019666664,0.75742687,119770.0,119760.0,0.12969]
[1755019667066,0.25166798,119770.0,119760.0,0.12969]
[1755019667263,0.75742687,119770.0,119760.0,0.03422]
[1755019667472,0.75742687,119770.0,119760.0,0.00862]
[1755019667673,0.1311034,119750.0,119740.0,0.12107]
[1755019667870,1.58214586,119750.0,119740.0,0.12107]
[1755019668068,1.07638697,119750.0,119740.0,0.07322]
[1755019668271,1.58214586,119750.0,119740.0,0.1567204]
[1755019668574,1.07638697,119750.0,119740.0,0.2045704]
[1755019669164,1.00500697,119750.0,119740.0,0.71032929]
[1755019669359,1.03698697,119750.0,119740.0,0.2045704]
[1755019669563,1.07638697,119750.0,119740.0,0.71032929]
[1755019669774,1.07638697,119750.0,119740.0,0.71232929]
[1755019670067,1.07638697,119750.0,119740.0,0.71332929]
[1755019670867,1.07638697,119750.0,119740.0,0.2075704]
[1755019671071,1.07638697,119750.0,119740.0,0.71332929]
[1755019671571,1.07638697,119750.0,119740.0,0.2075704]
[1755019672161,1.07638697,119750.0,119740.0,0.1352104]
[1755019672560,1.58214586,119750.0,119740.0,0.05171]
[1755019672774,1.58214586,119750.0,119740.0,0.1931204]
[1755019672974,1.07638697,119750.0,119740.0,0.0865004]
[1755019673167,1.58214586,119750.0,119740.0,0.003]
[1755019673368,1.07638697,119750.0,119740.0,0.003]
[1755019673672,1.58214586,119750.0,119740.0,0.003]
[1755019673873,0.2024973,119730.0,119720.0,0.12107]
[1755019674073,1.56077619,119730.0,119720.0,0.05011]
[1755019674274,1.5849456,119730.0,119720.0,0.0091]
[1755019674772,0.1311243,119720.0,119710.0,0.3716314]
[1755019675072,0.1221013,119710.0,119700.0,0.2761802]
[1755019675264,1.12148378,119710.0,119700.0,0.12107]
[1755019675466,1.12148378,119710.0,119700.0,0.1567482]
[1755019675663,0.2025182,119700.0,119690.0,0.2046045]
[1755019676268,0.21922435,119700.0,119690.0,0.2046045]
[1755019677478,0.22759351,119700.0,119690.0,0.2046045]
[1755019678070,0.22759351,119700.0,119690.0,0.12107]
[1755019678266,0.2025252,119690.0,119680.0,0.1670783]
[1755019678471,1.0590052,119690.0,119680.0,0.0835389]
[1755019678682,0.2025322,119680.0,119670.0,0.2881638]
[1755019679568,0.22656454,119680.0,119670.0,0.2881638]
[1755019680172,0.14302234,119680.0,119670.0,0.2881638]
[1755019680479,1.08412454,119680.0,119670.0,0.88714008]
[1755019680983,1.00058234,119680.0,119670.0,0.88714008]
[1755019681281,0.09501531,119700.0,119690.0,0.0835352]
[1755019681479,1.27608784,119700.0,119690.0,0.2005752]
[1755019681878,1.34328905,119700.0,119690.0,0.2005752]
[1755019682078,1.34328905,119700.0,119690.0,0.10277]
[1755019682282,0.3692796,119690.0,119680.0,0.1544822]
[1755019682578,0.39331633,119690.0,119680.0,0.2005822]
[1755019682774,0.30977413,119690.0,119680.0,0.2005822]
[1755019682977,0.22623193,119690.0,119680.0,0.2005822]
[1755019683578,0.2021952,119690.0,119680.0,0.2015822]
[1755019684282,0.2021952,119690.0,119680.0,0.11804]
[1755019684581,0.2021952,119690.0,119680.0,0.11904]
[1755019684887,0.2021952,119690.0,119680.0,0.10477]
[1755019685381,0.79617148,119690.0,119680.0,0.002]
[1755019686382,0.2021952,119690.0,119680.0,0.2025822]
[1755019686780,0.2021952,119690.0,119680.0,0.11904]
[1755019687686,0.2021952,119690.0,119680.0,0.2025822]
[1755019688583,0.0932431,119650.0,119640.0,0.11741]
[1755019688884,0.9997031,119650.0,119640.0,0.11741]
[1755019689086,0.9997031,119650.0,119640.0,0.2009801]
[1755019689286,0.9856331,119650.0,119640.0,0.11741]
[1755019689878,0.9856331,119650.0,119640.0,0.11941]
[1755019690180,0.99392972,119650.0,119640.0,0.11941]
[1755019690580,1.05228756,119650.0,119640.0,0.11941]
[1755019691386,1.05728756,119650.0,119640.0,0.11941]
[1755019691886,1.02973756,119650.0,119640.0,0.79495638]
[1755019692078,0.07465446,119650.0,119640.0,0.79495638]
[1755019692388,1.04247756,119650.0,119640.0,0.79495638]
[1755019692692,1.04247756,119650.0,119640.0,0.2009801]
[1755019692880,1.04247756,119650.0,119640.0,0.79495638]
[1755019693187,1.04247756,119650.0,119640.0,0.11741]
[1755019693490,1.04247756,119650.0,119640.0,0.2009801]
[1755019693673,1.04247756,119650.0,119640.0,0.11741]
[1755019694084,1.04247756,119650.0,119640.0,0.11712]
[1755019694686,1.04247756,119650.0,119640.0,0.2006901]
[1755019695187,1.05454756,119650.0,119640.0,0.2006901]
[1755019695989,1.05554756,119650.0,119640.0,0.2006901]
[1755019696677,1.05554756,119650.0,119640.0,0.10285]
[1755019698783,1.05554756,119650.0,119640.0,0.07102]
[1755019699180,1.05554756,119650.0,119640.0,0.02347]
[1755019699392,1.05554756,119650.0,119640.0,0.1070401]
[1755019699592,0.21151756,119650.0,119640.0,0.2006901]
[1755019699801,1.07919756,119650.0,119640.0,0.2006901]
[1755019699993,1.07919756,119650.0,119640.0,0.11712]
[1755019700393,1.07919756,119650.0,119640.0,0.10285]
[1755019700791,1.07919756,119650.0,119640.0,0.1864201]
[1755019700997,1.07919756,119650.0,119640.0,0.2006901]
[1755019701392,1.07919756,119650.0,119640.0,0.11712]
[1755019701698,1.07919756,119650.0,119640.0,0.10285]
[1755019703700,1.1031676,119650.0,119640.0,0.10285]
[1755019704285,1.69714388,119650.0,119640.0,0.06193]
[1755019704487,1.1031676,119650.0,119640.0,8e-05]
[1755019704890,1.69714388,119650.0,119640.0,8e-05]
[1755019705095,0.1378841,119620.0,119610.0,0.04644]
[1755019705392,1.0012841,119620.0,119610.0,0.09368]
[1755019705591,1.02529445,119620.0,119610.0,0.09368]
[1755019706192,0.1238211,119610.0,119600.0,0.320589]
[1755019706398,0.14783145,119610.0,119600.0,0.200638]
[1755019706791,0.16190145,119610.0,119600.0,0.200638]
[1755019707388,0.07831035,119610.0,119600.0,0.200638]
[1755019707592,0.06424035,119610.0,119600.0,0.200638]
[1755019707794,0.14783145,119610.0,119600.0,0.200638]
[1755019708796,0.16190145,119610.0,119600.0,0.200638]
[1755019708995,0.16190145,119610.0,119600.0,0.201638]
[1755019710494,0.14783145,119610.0,119600.0,0.201638]
[1755019710809,0.06424035,119610.0,119600.0,0.79561428]
[1755019710994,0.03369035,119610.0,119600.0,0.79561428]
[1755019711796,0.16070145,119610.0,119600.0,0.2024081]
[1755019711997,0.14663145,119610.0,119600.0,0.2024081]
[1755019712500,0.06304035,119610.0,119600.0,0.79638438]
[1755019712691,0.88493035,119610.0,119600.0,0.79638438]
[1755019713495,0.86092,119610.0,119600.0,0.79638438]
[1755019716904,0.86092,119610.0,119600.0,0.2024081]
[1755019717099,0.86092,119610.0,119600.0,0.79638438]
[1755019717305,0.86092,119610.0,119600.0,0.2024081]
[1755019717506,0.86092,119610.0,119600.0,0.79638438]
[1755019718102,0.9836911,119610.0,119600.0,0.79638438]
[1755019718398,1.00777123,119610.0,119600.0,0.79638438]
[1755019719411,0.92418013,119610.0,119600.0,0.79638438]
[1755019719902,0.92418013,119610.0,119600.0,0.2024081]
[1755019720103,0.92418013,119610.0,119600.0,0.79638438]
[1755019720501,1.00777123,119610.0,119600.0,0.79638438]
[1755019720703,1.00777123,119610.0,119600.0,0.2024081]
[1755019721406,1.02184123,119610.0,119600.0,0.2024081]
[1755019722605,1.02184123,119610.0,119600.0,0.1882781]
[1755019723703,1.02184123,119610.0,119600.0,0.2024081]
[1755019724810,0.93825013,119610.0,119600.0,0.70995825]
[1755019725307,0.07733013,119610.0,119600.0,0.70995825]
[1755019725509,0.93081013,119610.0,119600.0,0.70995825]
[1755019725912,0.91674013,119610.0,119600.0,0.70995825]
[1755019726409,1.00033123,119610.0,119600.0,0.70995825]
[1755019726611,1.01440123,119610.0,119600.0,0.70995825]
[1755019727203,1.01440123,119610.0,119600.0,0.1392181]
[1755019727409,1.01440123,119610.0,119600.0,0.1414281]
[1755019727605,1.52195138,119610.0,119600.0,0.1414281]
[1755019728005,1.01440123,119610.0,119600.0,0.0845981]
[1755019728206,1.01440123,119610.0,119600.0,0.1078881]
[1755019728609,1.01440123,119610.0,119600.0,0.0845981]
[1755019728807,1.52195138,119610.0,119600.0,0.1078881]
[1755019729107,1.52195138,119610.0,119600.0,0.0845981]
[1755019730410,1.52195138,119610.0,119600.0,0.001]
[1755019730609,1.01440123,119610.0,119600.0,0.0845981]
[1755019730802,1.52195138,119610.0,119600.0,0.0845981]
[1755019731008,1.01440123,119610.0,119600.0,0.0845981]
[1755019731309,1.52195138,119610.0,119600.0,0.0845981]
[1755019731505,1.01440123,119610.0,119600.0,0.0845981]
[1755019731708,1.01440123,119610.0,119600.0,0.1414281]
[1755019731911,1.01440123,119610.0,119600.0,0.69582825]
[1755019732106,1.01440123,119610.0,119600.0,0.1882781]
[1755019732413,1.01440123,119610.0,119600.0,0.1455281]
[1755019733007,1.01440123,119610.0,119600.0,0.61543825]
[1755019733511,1.01440123,119610.0,119600.0,0.53184015]
[1755019733722,1.01440123,119610.0,119600.0,0.02429]
[1755019733919,1.52195138,119610.0,119600.0,0.001]
[1755019734416,1.01440123,119610.0,119600.0,0.001]
[1755019734605,1.52195138,119610.0,119600.0,0.001]
[1755019734810,1.01440123,119610.0,119600.0,0.001]
[1755019736609,1.60933868,119610.0,119600.0,0.001]
[1755019737322,0.1358621,119580.0,119570.0,0.21970823]
[1755019737526,0.9846221,119580.0,119570.0,0.21970823]
[1755019737727,0.9846221,119580.0,119570.0,0.21971213]
[1755019738127,0.99285777,119580.0,119570.0,0.21971213]
[1755019739029,0.99285777,119580.0,119570.0,0.22271213]
[1755019739433,0.97978777,119580.0,119570.0,0.10490213]